bitfinex/quotes_SOLUSD_20220210
["timestamp","ask_amount","ask_price","bid_price","bid_amount"]
[1644504041972,38.9047,108.3,108.2,42.28220308]
[1644504042396,38.9047,108.3,108.19,4.869]
[1644504042595,6.85022154,108.29,108.19,0.25]
[1644504042796,6.85022154,108.29,108.18,0.25]
[1644504042797,2.23122154,108.29,108.18,0.25]
[1644504042994,27.6547,108.3,108.19,4.619]
[1644504043395,27.9047,108.3,108.2,36.19851425]
[1644504043694,27.9047,108.3,108.2,40.81651425]
[1644504043994,13.8584,108.34,108.2,42.70283635]
[1644504044197,15.868,108.35,108.2,42.70283635]
[1644504044198,4.618,108.38,108.2,63.35466857]
[1644504044398,4.617,108.39,108.22,36.79237568]
[1644504044596,525.00929293,108.4,108.23,15.866]
[1644504044798,543.47489293,108.4,108.24,44.91953485]
[1644504045004,543.47489293,108.4,108.23,25.7023221]
[1644504045005,554.72489293,108.4,108.23,18.8863221]
[1644504045198,11.31195763,108.39,108.23,11.25]
[1644504045397,4.616,108.38,108.19,15.866]
[1644504045598,0.45,108.36,108.2,6.0]
[1644504045896,0.30325097,108.37,108.19,53.04028701]
[1644504045897,15.867,108.35,108.19,53.04028701]
[1644504046097,13.8611,108.31,108.19,53.04028701]
[1644504046298,4.618,108.3,108.19,48.42428701]
[1644504046498,4.618,108.3,108.19,48.44828701]
[1644504046898,4.868,108.3,108.19,0.024]
[1644504047503,16.09412154,108.29,108.19,0.024]
[1644504047700,15.869,108.28,108.17,0.024]
[1644504047901,18.10022154,108.28,108.14,39.41242761]
[1644504048102,11.25,108.28,108.15,4.644]
[1644504048301,4.62,108.27,108.16,46.76761901]
[1644504048500,18.4851,108.27,108.16,46.76761901]
[1644504048902,29.7351,108.27,108.15,0.024]
[1644504049103,29.7351,108.27,108.13,0.024]
[1644504049304,42.70372493,108.27,108.13,0.024]
[1644504049505,52.43677213,108.27,108.13,0.024]
[1644504049805,52.43677213,108.27,108.13,35.62429056]
[1644504050006,29.7351,108.27,108.14,0.024]
[1644504050204,25.1151,108.27,108.15,4.62]
[1644504050406,25.1151,108.27,108.16,42.40950463]
[1644504050804,25.1151,108.27,108.16,48.65950463]
[1644504051005,25.1151,108.27,108.16,42.40950463]
[1644504051204,25.1151,108.27,108.15,4.644]
[1644504051407,4.62,108.26,108.15,4.894]
[1644504051604,13.8679,108.25,108.15,4.894]
[1644504051806,4.621,108.24,108.15,4.87]
[1644504052005,13.8679,108.25,108.15,4.87]
[1644504052006,18.4889,108.25,108.15,4.87]
[1644504052206,29.7389,108.25,108.15,4.87]
[1644504052407,29.7389,108.25,108.15,0.25]
[1644504052805,29.7389,108.25,108.14,47.02977344]
[1644504053010,11.25,108.25,108.14,47.02977344]
[1644504053206,11.25,108.25,108.14,54.6621816]
[1644504053407,13.5888,108.27,108.15,4.621]
[1644504053611,4.62,108.26,108.16,44.96452557]
[1644504053807,4.62,108.26,108.16,45.21452557]
[1644504054008,4.62,108.26,108.16,0.25]
[1644504054209,18.7353,108.26,108.15,0.024]
[1644504054407,18.7353,108.26,108.14,0.274]
[1644504055808,18.7353,108.26,108.14,1.65126698]
[1644504056107,18.7353,108.26,108.15,45.7186641]
[1644504056311,14.1153,108.26,108.15,45.9926641]
[1644504056510,13.8653,108.26,108.15,45.9926641]
[1644504056710,13.8623,108.29,108.16,98.36]
[1644504056910,4.62,108.34,108.17,41.19873652]
[1644504057108,12.97154509,108.34,108.18,4.642]
[1644504057309,12.97154509,108.34,108.19,42.27327339]
[1644504057510,4.618,108.33,108.2,0.024]
[1644504057712,13.8582,108.32,108.2,0.024]
[1644504057912,4.618,108.31,108.2,0.024]
[1644504058110,13.8582,108.32,108.2,4.618]
[1644504058111,12.97154509,108.32,108.2,4.618]
[1644504058311,46.1953,108.34,108.21,35.60913992]
[1644504058512,4.617,108.35,108.21,40.25013992]
[1644504058711,42.47739151,108.36,108.22,0.024]
[1644504058910,13.8566,108.33,108.23,4.617]
[1644504059113,13.8566,108.33,108.24,37.89171561]
[1644504059314,13.8566,108.33,108.24,0.25]
[1644504059513,23.69162099,108.33,108.23,4.641]
[1644504059813,31.22172566,108.33,108.23,4.617]
[1644504060012,31.22172566,108.33,108.22,0.024]
[1644504060912,45.36482566,108.33,108.22,0.024]
[1644504061113,28.2497,108.33,108.22,0.024]
[1644504061314,28.2497,108.33,108.23,48.13215575]
[1644504061515,13.8587,108.31,108.22,0.024]
[1644504061714,4.618,108.3,108.2,1.29124473]
[1644504061914,11.25,108.29,108.18,1.29124473]
[1644504062118,4.619,108.28,108.17,0.024]
[1644504062317,11.25,108.27,108.17,0.024]
[1644504062516,4.62,108.26,108.17,47.11252606]
[1644504062717,13.8682,108.24,108.17,47.08852606]
[1644504062926,11.25,108.26,108.17,47.08852606]
[1644504063115,11.25,108.26,108.14,1.29124473]
[1644504063316,4.62,108.25,108.14,1.29124473]
[1644504063914,13.8668,108.24,108.14,1.29124473]
[1644504064116,50.8491,108.25,108.15,37.82289254]
[1644504064117,4.621,108.23,108.15,37.82289254]
[1644504064317,4.621,108.24,108.15,37.82289254]
[1644504064717,46.2291,108.25,108.15,37.82289254]
[1644504064918,13.8688,108.23,108.15,0.25]
[1644504065121,13.8688,108.23,108.13,1.29124473]
[1644504065321,13.8688,108.23,108.13,1.26724473]
[1644504065519,4.621,108.22,108.13,1.26724473]
[1644504065720,46.2451,108.21,108.13,1.26724473]
[1644504065919,4.622,108.2,108.13,42.91138891]
[1644504066119,13.8736,108.2,108.13,42.91138891]
[1644504066318,13.8736,108.2,108.13,41.64414418]
[1644504066919,14.1236,108.2,108.13,41.64414418]
[1644504067321,13.8685,108.22,108.13,41.64414418]
[1644504067523,13.8685,108.22,108.13,42.91138891]
[1644504067721,13.8685,108.22,108.13,41.64414418]
[1644504067923,13.8685,108.22,108.13,42.91138891]
[1644504068344,18.4905,108.22,108.13,41.64414418]
[1644504069522,18.4905,108.22,108.12,1.29124473]
[1644504069723,18.4905,108.22,108.12,1.26724473]
[1644504069924,18.4905,108.22,108.11,1.29124473]
[1644504070126,13.8685,108.22,108.11,1.29124473]
[1644504070327,13.8685,108.22,108.12,5.88924473]
[1644504070531,13.8685,108.22,108.13,49.28460694]
[1644504070924,13.8685,108.22,108.13,49.53460694]
[1644504071525,13.8685,108.22,108.13,49.28460694]
[1644504071727,13.8685,108.22,108.12,4.646]
[1644504071926,13.8685,108.22,108.11,1.29124473]
[1644504072131,25.1185,108.22,108.11,1.54124473]
[1644504072328,25.3685,108.22,108.11,1.54124473]
[1644504072527,25.1185,108.22,108.11,0.274]
[1644504072728,25.1185,108.22,108.12,47.20410206]
[1644504072927,13.8685,108.22,108.12,47.20410206]
[1644504073130,13.8685,108.22,108.14,44.06968987]
[1644504073327,13.8685,108.22,108.14,48.94068987]
[1644504073628,13.8685,108.22,108.14,50.2079346]
[1644504073825,13.8685,108.22,108.14,45.5869346]
[1644504074427,13.8685,108.22,108.14,1.26724473]
[1644504074829,13.8685,108.22,108.13,5.88824473]
[1644504075027,13.8685,108.22,108.12,1.29124473]
[1644504075229,14.1185,108.22,108.12,1.26724473]
[1644504075429,4.622,108.21,108.12,1.26724473]
[1644504075632,13.8725,108.19,108.11,1.29124473]
[1644504075852,13.8725,108.19,108.1,1.26724473]
[1644504076550,13.8725,108.19,108.11,47.73713169]
[1644504077050,13.8725,108.19,108.12,1.26724473]
[1644504077250,13.8725,108.19,108.13,39.1614518]
[1644504077653,13.8725,108.19,108.13,39.4114518]
[1644504077851,4.622,108.21,108.14,132.0]
[1644504078051,15.871,108.25,108.15,35.25422342]
[1644504078253,14.1806,108.27,108.15,40.12422342]
[1644504078450,14.1806,108.27,108.15,41.39146815]
[1644504078651,4.62,108.26,108.15,36.79546815]
[1644504079252,13.8639,108.25,108.15,35.27822342]
[1644504079551,4.621,108.24,108.14,0.024]
[1644504079753,2.23122154,108.24,108.12,1.26724473]
[1644504079952,15.45142141,108.27,108.13,0.024]
[1644504079953,31.32242141,108.27,108.13,0.024]
[1644504080152,25.4306,108.27,108.14,4.621]
[1644504080352,13.8667,108.23,108.15,44.03267317]
[1644504082756,13.8667,108.23,108.15,44.28267317]
[1644504083555,14.1167,108.23,108.15,44.28267317]
[1644504084057,14.1167,108.23,108.15,45.2999179]
[1644504084256,14.1167,108.23,108.15,44.03267317]
[1644504084655,13.8667,108.23,108.15,44.03267317]
[1644504085055,13.8667,108.23,108.15,44.28267317]
[1644504085260,13.8667,108.23,108.15,45.5499179]
[1644504085458,13.8667,108.23,108.15,51.5499179]
[1644504085659,13.8667,108.23,108.15,45.5499179]
[1644504086359,12.3667,108.23,108.15,45.5499179]
[1644504086758,12.3667,108.23,108.17,39.28983868]
[1644504087159,12.3667,108.23,108.17,39.53983868]
[1644504087359,70.76742141,108.3,108.18,4.621]
[1644504087562,23.2935,108.3,108.19,41.26970888]
[1644504087761,23.2935,108.3,108.19,60.03695361]
[1644504088261,13.619,108.32,108.2,1.26724473]
[1644504088464,13.8582,108.29,108.21,37.06349002]
[1644504088664,13.8582,108.29,108.2,0.25]
[1644504088863,14.1082,108.29,108.2,0.25]
[1644504089163,14.1082,108.29,108.19,0.024]
[1644504089365,14.1082,108.29,108.17,12.54124473]
[1644504089565,4.619,108.28,108.17,38.5442132]
[1644504089767,13.8632,108.25,108.17,37.27696847]
[1644504089966,13.8632,108.25,108.17,37.25296847]
[1644504090367,13.8632,108.25,108.17,0.25]
[1644504090767,13.8632,108.25,108.16,1.51724473]
[1644504090971,13.8632,108.25,108.16,7.51724473]
[1644504091371,0.25,108.29,108.17,53.79427234]
[1644504091573,1.27082141,108.3,108.17,53.81827234]
[1644504091869,46.2031,108.29,108.18,1.29124473]
[1644504092071,4.619,108.28,108.19,37.34397848]
[1644504092269,50.8221,108.29,108.18,0.024]
[1644504092468,46.2031,108.29,108.17,0.274]
[1644504092669,4.619,108.28,108.17,0.274]
[1644504092869,4.619,108.28,108.17,0.024]
[1644504093069,4.869,108.28,108.16,1.54124473]
[1644504093269,0.25,108.28,108.17,41.31574388]
[1644504093471,0.25,108.28,108.17,41.33974388]
[1644504093671,63.48953596,108.29,108.17,41.58974388]
[1644504093872,18.4787,108.28,108.17,41.58974388]
[1644504094472,18.4787,108.28,108.17,0.274]
[1644504094673,32.84179521,108.28,108.17,0.024]
[1644504094873,47.01513596,108.28,108.16,0.024]
[1644504095773,13.8681,108.24,108.16,0.024]
[1644504095978,4.621,108.23,108.14,1.29124473]
[1644504096274,18.24683609,108.23,108.13,4.643]
[1644504096472,20.63661455,108.22,108.13,4.619]
[1644504096672,29.49683609,108.22,108.13,4.619]
[1644504096874,13.8706,108.21,108.13,44.09731475]
[1644504097073,18.4926,108.21,108.13,44.09731475]
[1644504097275,13.8706,108.21,108.13,44.34731475]
[1644504097676,13.8706,108.21,108.13,45.61455948]
[1644504098074,13.8706,108.21,108.13,40.99555948]
[1644504098274,13.8706,108.21,108.13,40.74555948]
[1644504098577,13.8706,108.21,108.13,39.47831475]
[1644504098774,13.8706,108.21,108.13,40.99555948]
[1644504099074,13.8706,108.21,108.13,39.47831475]
[1644504100078,14.1206,108.21,108.13,39.47831475]
[1644504103002,14.1206,108.21,108.13,39.72831475]
[1644504103200,13.8706,108.21,108.13,39.72831475]
[1644504103401,13.8706,108.21,108.13,39.47831475]
[1644504103603,13.8706,108.21,108.13,39.72831475]
[1644504103801,13.8706,108.21,108.13,40.99555948]
[1644504104401,13.8706,108.21,108.14,4.622]
[1644504104602,13.8706,108.21,108.15,39.20951862]
[1644504104801,13.8706,108.21,108.15,39.45951862]
[1644504105201,13.8706,108.21,108.15,39.20951862]
[1644504105401,13.8706,108.21,108.15,39.45951862]
[1644504107603,13.8706,108.21,108.13,5.88824473]
[1644504108004,13.8706,108.21,108.13,4.621]
[1644504108206,13.8706,108.21,108.11,1.29124473]
[1644504108405,14.1206,108.21,108.11,1.29124473]
[1644504108606,14.1206,108.21,108.12,43.89880948]
[1644504109205,14.1206,108.21,108.12,45.41605421]
[1644504110010,13.8706,108.21,108.12,44.14880948]
[1644504110411,13.8706,108.21,108.12,45.41605421]
[1644504110610,13.8706,108.21,108.12,44.14880948]
[1644504111213,13.8706,108.21,108.12,43.89880948]
[1644504111415,14.1206,108.21,108.12,43.89880948]
[1644504111612,14.1206,108.21,108.12,44.14880948]
[1644504111811,14.1206,108.21,108.12,43.89880948]
[1644504113012,13.8706,108.21,108.12,55.14880948]
[1644504113212,13.8706,108.21,108.12,56.41605421]
[1644504113814,13.8706,108.21,108.12,56.66605421]
[1644504114318,13.8706,108.21,108.12,62.66605421]
[1644504114517,13.8706,108.21,108.12,61.28805421]
[1644504114719,13.8706,108.21,108.12,37.25754473]
[1644504114918,4.622,108.2,108.12,5.88924473]
[1644504115123,13.8741,108.18,108.12,4.622]
[1644504115525,18.4971,108.18,108.12,4.622]
[1644504115725,16.10532154,108.18,108.12,4.622]
[1644504115921,16.35532154,108.18,108.12,4.622]
[1644504116122,16.35532154,108.18,108.13,46.77085817]
[1644504116322,14.1241,108.18,108.1,0.024]
[1644504116722,14.1241,108.18,108.08,1.51724473]
[1644504116924,13.8741,108.18,108.09,15.13954473]
[1644504117322,13.8741,108.18,108.1,37.28158329]
[1644504117523,13.8741,108.18,108.09,15.38954473]
[1644504117524,13.8741,108.18,108.09,1.26724473]
[1644504117721,4.623,108.17,108.08,0.024]
[1644504117922,13.8779,108.15,108.06,112.23184473]
[1644504118122,18.5029,108.15,108.06,25.20114473]
[1644504118722,18.5029,108.15,108.05,1.29124473]
[1644504118723,2.5436366,108.14,108.05,1.29124473]
[1644504118922,13.8831,108.12,108.05,0.024]
[1644504119122,13.8831,108.12,108.03,1.29124473]
[1644504119323,13.8831,108.12,108.03,1.26724473]
[1644504119722,13.8831,108.12,108.04,36.99138367]
[1644504120326,13.8831,108.12,108.04,38.2586284]
[1644504120528,13.8831,108.12,108.05,1.26724473]
[1644504120725,13.8831,108.12,108.06,47.57031166]
[1644504121127,13.8831,108.12,108.06,47.82031166]
[1644504121528,50.8745,108.17,108.06,47.82031166]
[1644504121728,46.2495,108.17,108.06,55.44735909]
[1644504121928,46.2495,108.17,108.08,36.00044925]
[1644504122431,11.25,108.2,108.08,37.51769398]
[1644504122630,11.25,108.2,108.08,37.54169398]
[1644504122830,13.8735,108.17,108.08,37.54169398]
[1644504123630,13.8735,108.17,108.08,1.54124473]
[1644504123833,16.10472154,108.17,108.08,0.024]
[1644504124032,15.874,108.16,108.06,1.29124473]
[1644504124331,15.874,108.16,108.02,34.1003]
[1644504124332,13.8801,108.13,108.05,0.024]
[1644504124539,18.5051,108.13,108.04,36.56661778]
[1644504124734,18.5051,108.13,108.03,1.29124473]
[1644504124931,2.23122154,108.12,108.03,1.26724473]
[1644504125131,4.626,108.11,108.03,1.29124473]
[1644504125332,13.8861,108.1,108.01,1.29124473]
[1644504125532,13.8861,108.1,108.01,1.54124473]
[1644504125731,13.8861,108.1,108.02,41.32697868]
[1644504125934,13.8861,108.1,108.02,42.59422341]
[1644504126133,13.8861,108.1,108.02,41.32697868]
[1644504126334,13.8861,108.1,108.01,1.54124473]
[1644504126734,13.8861,108.1,108.01,1.29124473]
[1644504126939,16.11732154,108.1,108.0,1.29124473]
[1644504127136,20.74432154,108.1,108.0,0.024]
[1644504127337,20.74432154,108.1,108.0,41.49497902]
[1644504127535,18.5131,108.1,108.0,39.99497902]
[1644504127736,18.5131,108.1,108.0,40.01897902]
[1644504128236,20.74432154,108.1,108.0,0.024]
[1644504128466,13.8861,108.1,108.0,0.024]
[1644504128659,4.627,108.09,108.0,0.024]
[1644504128859,13.8902,108.07,108.0,0.024]
[1644504129060,18.5182,108.07,107.98,23.5475]
[1644504129260,13.8902,108.07,107.98,75.28604132]
[1644504129759,13.8902,108.07,107.98,51.73854132]
[1644504130161,14.1402,108.07,107.98,6.0]
[1644504130359,4.628,108.06,107.97,0.024]
[1644504130561,13.8924,108.04,107.97,0.024]
[1644504130762,13.8924,108.04,107.95,0.024]
[1644504130960,13.8924,108.04,107.94,37.51829216]
[1644504131160,13.8924,108.04,107.94,1.29124473]
[1644504131360,13.8924,108.04,107.94,0.024]
[1644504131361,19.8924,108.04,107.94,0.024]
[1644504131560,13.8958,108.01,107.94,0.024]
[1644504131760,13.8958,108.01,107.93,62.39010452]
[1644504132563,13.8958,108.01,107.93,74.28734925]
[1644504132768,13.8958,108.01,107.93,73.02010452]
[1644504132962,13.8958,108.01,107.93,68.39010452]
[1644504133161,13.8958,108.01,107.93,45.70890452]
[1644504133463,13.8958,108.01,107.93,6.0]
[1644504133662,25.1458,108.01,107.92,0.024]
[1644504133863,6.86222154,108.0,107.91,0.024]
[1644504134064,13.9029,107.98,107.9,0.82568839]
[1644504134461,13.9029,107.98,107.9,38.35551651]
[1644504134862,19.9029,107.98,107.9,38.35551651]
[1644504135067,19.9029,107.98,107.9,0.82568839]
[1644504135265,22.13412154,107.98,107.9,0.82568839]
[1644504135465,4.632,107.97,107.9,0.82568839]
[1644504135665,13.9068,107.95,107.9,0.82568839]
[1644504136063,13.9068,107.95,107.9,8.839e-05]
[1644504136266,16.13802154,107.95,107.9,8.839e-05]
[1644504136464,4.632,107.94,107.9,8.839e-05]
[1644504136670,4.632,107.95,107.9,8.839e-05]
[1644504136866,13.9068,107.93,107.9,8.839e-05]
[1644504137065,6.0,107.98,107.9,8.839e-05]
[1644504137265,46.3426,107.97,107.9,8.839e-05]
[1644504137666,2.23122154,107.97,107.9,8.839e-05]
[1644504138063,13.9026,107.95,107.9,8.839e-05]
[1644504138964,6.0,107.98,107.9,8.839e-05]
[1644504139264,13.8998,107.97,107.9,8.839e-05]
[1644504139672,6.0,107.97,107.9,8.839e-05]
[1644504139967,13.251,108.01,107.92,38.75578354]
[1644504140168,6.0,107.97,107.92,38.75578354]
[1644504140368,14.619,108.01,107.92,39.00578354]
[1644504140568,14.619,108.01,107.93,4.631]
[1644504140766,14.619,108.01,107.94,37.93860392]
[1644504141165,14.619,108.01,107.94,38.18860392]
[1644504141966,14.869,108.01,107.94,38.18860392]
[1644504142370,14.869,108.01,107.94,37.93860392]
[1644504142870,28.7639,108.01,107.92,0.024]
[1644504143072,4.631,108.0,107.91,4.63]
[1644504143470,15.881,108.0,107.91,4.63]
[1644504143671,18.11222154,108.0,107.91,4.63]
[1644504143872,15.881,108.0,107.91,4.63]
[1644504144669,4.631,108.0,107.92,44.59869864]
[1644504144872,13.8986,107.98,107.9,0.02408839]
[1644504145071,18.5306,107.98,107.9,8.839e-05]
[1644504145675,20.76182154,107.98,107.9,8.839e-05]
[1644504145873,32.01182154,107.98,107.9,8.839e-05]
[1644504146074,30.17184354,107.98,107.9,8.839e-05]
[1644504146671,27.940622,107.98,107.9,8.839e-05]
[1644504146874,42.108122,107.98,107.9,8.839e-05]
[1644504147073,47.608122,107.98,107.9,8.839e-05]
[1644504147274,33.440622,107.98,107.9,8.839e-05]
[1644504148377,28.808622,107.98,107.9,8.839e-05]
[1644504148578,11.558622,107.98,107.9,8.839e-05]
[1644504148779,13.8963,108.0,107.9,8.839e-05]
[1644504148981,13.8963,108.0,107.91,39.20616923]
[1644504149180,13.8963,108.0,107.91,39.23016923]
[1644504149380,13.6807,108.04,107.91,44.08716923]
[1644504149578,13.6807,108.04,107.92,0.024]
[1644504149779,13.895,108.01,107.92,13.9174]
[1644504149982,19.811,108.06,107.93,4.631]
[1644504150179,19.811,108.06,107.94,37.83810977]
[1644504150180,22.5421,108.06,107.94,37.83810977]
[1644504150380,22.5421,108.06,107.95,4.628]
[1644504150683,22.5421,108.06,107.95,10.664]
[1644504150883,13.8931,108.03,107.96,0.024]
[1644504151179,13.8931,108.03,107.94,0.024]
[1644504151779,14.1431,108.03,107.94,0.024]
[1644504151979,13.8931,108.03,107.94,0.024]
[1644504152381,19.8931,108.03,107.94,0.024]
[1644504152780,6.0,108.03,107.94,0.024]
[1644504152981,13.8905,108.05,107.94,0.024]
[1644504153184,22.5421,108.06,107.94,1.64614129]
[1644504153380,22.5421,108.06,107.95,39.14305608]
[1644504153582,22.5421,108.06,107.96,0.024]
[1644504153780,22.5421,108.06,107.97,4.628]
[1644504153982,22.5421,108.06,107.98,48.59890197]
[1644504154380,22.5421,108.06,107.98,54.84890197]
[1644504154583,22.5421,108.06,107.98,48.84890197]
[1644504154983,22.5421,108.06,107.98,54.84890197]
[1644504155184,22.5421,108.06,107.98,48.84890197]
[1644504155382,22.7921,108.06,107.98,0.25]
[1644504155784,22.7921,108.06,107.97,0.024]
[1644504155982,22.7921,108.06,107.96,20.1377]
[1644504156181,22.7921,108.06,107.96,14.1377]
[1644504156381,22.7921,108.06,107.96,56.55532229]
[1644504156791,36.6807,108.06,107.97,4.628]
[1644504156988,28.1197,108.06,107.98,40.56701386]
[1644504157385,28.1197,108.06,107.98,40.81701386]
[1644504157587,5.89882141,108.11,107.98,134.55701386]
[1644504157786,13.8839,108.1,108.0,39.62646447]
[1644504158185,19.8839,108.1,108.0,59.78346447]
[1644504158989,6.0,108.1,108.0,61.40560576]
[1644504159188,13.8815,108.12,108.02,62.14992206]
[1644504159389,13.8815,108.12,108.02,68.39992206]
[1644504159586,13.8815,108.12,108.02,62.39992206]
[1644504159986,13.8815,108.12,108.02,68.39992206]
[1644504160187,13.8815,108.12,108.02,62.39992206]
[1644504160389,13.8815,108.12,108.02,68.39992206]
[1644504160588,13.8815,108.12,108.02,62.39992206]
[1644504160789,13.8815,108.12,108.02,68.39992206]
[1644504160994,13.8815,108.12,108.02,68.14992206]
[1644504161191,19.8815,108.12,108.02,68.14992206]
[1644504162216,20.1315,108.12,108.02,68.14992206]
[1644504162417,20.1315,108.12,108.02,68.39992206]
[1644504163419,19.8815,108.12,108.02,68.39992206]
[1644504163619,6.0,108.12,108.02,68.39992206]
[1644504163817,13.5369,108.16,108.05,13.8761]
[1644504164018,13.5369,108.16,108.07,47.89385127]
[1644504164519,15.76812154,108.16,108.07,0.25]
[1644504164820,18.501,108.15,108.04,0.25]
[1644504165225,20.73222154,108.15,108.04,0.25]
[1644504165520,20.73222154,108.15,108.04,35.16199288]
[1644504165720,20.73222154,108.15,108.03,72.6431]
[1644504165921,40.30766442,108.15,107.98,116.9741]
[1644504166128,37.81866886,108.15,108.01,6.25]
[1644504166322,35.68366442,108.15,108.01,10.626]
[1644504166723,35.68366442,108.15,108.02,39.38352226]
[1644504167123,4.625,108.14,108.02,39.38352226]
[1644504167324,13.8823,108.11,108.02,39.38352226]
[1644504168325,13.8823,108.11,108.02,39.63352226]
[1644504168526,13.8794,108.13,108.02,55.12864041]
[1644504168737,6.0,108.14,108.02,61.12864041]
[1644504168932,6.0,108.14,108.04,36.99832084]
[1644504169226,6.0,108.14,108.06,37.4908988]
[1644504169626,13.9879,108.19,108.06,43.7408988]
[1644504169827,13.8753,108.16,108.06,57.6161988]
[1644504170826,13.8753,108.16,108.06,51.6161988]
[1644504171728,20.1253,108.16,108.06,51.6161988]
[1644504172428,20.1253,108.16,108.04,18.5019]
[1644504172629,4.625,108.15,108.03,71.0542]
[1644504172828,13.8807,108.12,108.03,71.0542]
[1644504173230,6.25,108.16,108.03,71.0542]
[1644504173529,20.1585,108.16,108.04,36.76529935]
[1644504173731,4.625,108.15,108.04,36.76529935]
[1644504174130,13.879,108.13,108.04,50.64409935]
[1644504174329,13.879,108.13,108.04,62.87946115]
[1644504174530,13.879,108.13,108.04,6.2353618]
[1644504174730,13.879,108.13,108.04,4.625]
[1644504175432,2.23122154,108.12,108.04,4.625]
[1644504175631,13.8849,108.09,108.0,13.9069]
[1644504175831,13.8849,108.09,108.0,0.024]
[1644504178234,2.23122154,108.08,107.99,34.76787886]
[1644504178435,2.23122154,108.08,107.99,34.79187886]
[1644504178436,13.888,108.06,107.99,34.79187886]
[1644504178636,13.888,108.06,107.99,34.76787886]
[1644504178837,4.627,108.09,107.99,48.90347886]
[1644504179034,11.25,108.11,107.99,48.90347886]
[1644504179235,17.25,108.11,107.99,48.90347886]
[1644504179935,13.8856,108.07,107.99,48.90347886]
[1644504180334,14.1356,108.07,107.99,48.90347886]
[1644504181135,13.8856,108.07,107.99,48.90347886]
[1644504182636,14.1356,108.07,107.99,48.90347886]
[1644504182836,20.1356,108.07,107.99,48.90347886]
[1644504183037,14.1356,108.07,107.99,48.90347886]
[1644504183240,14.1356,108.07,107.99,54.90347886]
[1644504183439,14.1356,108.07,107.99,13.8856]
[1644504183737,20.1356,108.07,107.98,13.9111]
[1644504183941,2.23122154,108.06,107.98,0.024]
[1644504184136,13.8927,108.03,107.97,0.024]
[1644504184337,13.8927,108.03,107.94,1.26724473]
[1644504184538,16.12392154,108.03,107.94,1.26724473]
[1644504184937,13.8927,108.03,107.94,1.26724473]
[1644504185337,13.8927,108.03,107.94,1.51724473]
[1644504186441,13.8927,108.03,107.94,0.25]
[1644504186640,13.8927,108.03,107.93,62.83960832]
[1644504186841,13.8927,108.03,107.93,62.58960832]
[1644504187240,16.12392154,108.03,107.93,1.29124473]
[1644504187443,16.12392154,108.03,107.93,0.024]
[1644504187642,16.37392154,108.03,107.93,0.024]
[1644504187842,4.63,108.02,107.93,0.024]
[1644504188043,13.8963,108.0,107.92,0.024]
[1644504188243,13.8963,108.0,107.91,15.16244473]
[1644504188244,13.8963,108.0,107.91,49.84686228]
[1644504188451,13.8963,108.0,107.91,48.57961755]
[1644504189447,13.8963,108.0,107.92,4.631]
[1644504189747,13.8928,108.01,107.92,10.881]
[1644504189946,6.0,108.03,107.93,4.655]
[1644504190147,6.0,108.03,107.93,4.631]
[1644504190348,13.6844,108.05,107.93,12.17224473]
[1644504190550,59.9892,108.05,107.94,13.8915]
[1644504190750,13.8915,108.03,107.95,37.04630011]
[1644504190949,13.8915,108.03,107.96,4.63]
[1644504191150,49.83492654,108.08,107.96,4.63]
[1644504191349,37.0215,108.08,107.96,10.904]
[1644504191556,46.2965,108.07,107.97,13.9117]
[1644504191751,13.8863,108.07,107.97,14.1617]
[1644504192553,4.628,108.1,107.97,33.0220618]
[1644504192752,128.4538,108.12,107.98,93.74]
[1644504192951,8.50466736,108.16,108.02,13.8777]
[1644504193152,46.2582,108.17,108.03,47.83262037]
[1644504193351,129.68992141,108.18,108.03,66.94298217]
[1644504193752,128.4191,108.18,108.04,93.74]